bitfinex/quotes_SOLUSD_20251208
["timestamp","ask_amount","ask_price","bid_price","bid_amount"]
[1765205483779,5.09059347,137.96,137.92,7.25053734]
[1765205483979,0.72,137.96,137.92,7.25053734]
[1765205484399,11.61854592,137.97,137.92,7.92053734]
[1765205484590,12.33854592,137.97,137.93,7.24983696]
[1765205484790,11.61805158,137.98,137.93,0.67]
[1765205485278,7.24745811,137.98,137.93,0.67]
[1765205485502,7.24703514,137.99,137.94,11.61963179]
[1765205485698,4.37059347,138.0,137.94,25.37286027]
[1765205486009,4.37059347,137.99,137.94,26.04286027]
[1765205486522,5.09059347,137.99,137.94,7.91903832]
[1765205486882,4.37059347,137.98,137.93,7.24986483]
[1765205487103,4.37059347,137.97,137.93,7.24986483]
[1765205487307,12.33861609,137.97,137.92,7.25058004]
[1765205487499,12.33861609,137.97,137.92,7.92058004]
[1765205487809,7.2476426,137.98,137.93,0.67]
[1765205488114,11.61758254,137.99,137.93,5.04059347]
[1765205488286,11.61758254,137.99,137.94,0.67]
[1765205488486,11.61700838,138.0,137.94,5.04059347]
[1765205488812,7.61257032,138.01,137.95,15.55257032]
[1765205489106,7.61257032,138.01,137.95,16.22257032]
[1765205489603,7.965396,138.02,137.96,15.53104813]
[1765205489809,32.98719158,138.1,138.0,7.61257032]
[1765205489810,8.33257032,138.06,138.0,7.61257032]
[1765205490013,7.96337084,138.06,138.01,15.55257032]
[1765205490207,7.96337084,138.06,138.01,7.94]
[1765205490420,7.96337084,138.06,138.02,0.67]
[1765205490582,7.96337084,138.06,138.01,7.94]
[1765205490583,15.57594116,138.06,138.01,8.61]
[1765205492004,15.57594116,138.06,138.01,7.94]
[1765205492005,8.33257032,138.05,138.01,7.94]
[1765205492194,8.33257032,138.05,138.01,15.85576795]
[1765205492395,0.72,138.05,138.01,15.85576795]
[1765205492592,14.85594116,138.06,137.98,7.24694233]
[1765205492593,17.14251524,138.04,137.98,7.24694233]
[1765205492792,17.14251524,138.04,137.98,7.94]
[1765205492993,7.24480185,138.03,137.99,7.24674632]
[1765205493347,7.61257032,138.02,137.98,7.94]
[1765205493610,33.6893768,138.03,137.98,15.85740773]
[1765205493809,16.42251524,138.01,137.95,24.22746491]
[1765205494115,7.61257032,137.99,137.96,7.94]
[1765205494311,8.33257032,138.0,137.96,15.18841759]
[1765205494512,42.49932172,138.03,137.98,7.24728322]
[1765205494810,7.61257032,138.02,137.97,7.24773033]
[1765205494990,7.61257032,138.02,137.97,0.67]
[1765205494991,14.8581357,138.02,137.97,0.67]
[1765205495194,15.5781357,138.02,137.97,0.67]
[1765205495395,7.24556538,138.02,137.97,8.28257032]
[1765205495608,7.24556538,138.02,137.97,0.67]
[1765205495909,15.5781357,138.02,137.97,0.67]
[1765205496114,15.57879855,138.01,137.97,7.24795245]
[1765205496420,15.57879855,138.01,137.96,15.85828]
[1765205496808,0.72,138.0,137.96,15.18828]
[1765205496990,7.24550832,138.02,137.97,8.28257032]
[1765205497399,15.57807864,138.02,137.97,0.67]
[1765205497706,15.57807864,138.02,137.97,8.28257032]
[1765205497902,8.33257032,138.01,137.96,15.18841329]
[1765205498418,7.96637681,138.0,137.96,15.85841329]
[1765205498721,14.85811018,138.02,137.97,0.67]
[1765205498918,7.24553986,138.02,137.97,8.28257032]
[1765205499102,14.85747768,138.03,137.97,8.28257032]
[1765205499712,7.61257032,138.02,137.97,0.67]
[1765205499912,17.14251524,138.02,137.97,0.67]
[1765205500105,8.33257032,138.01,137.96,15.18841329]
[1765205500312,7.61257032,137.99,137.96,7.94]
[1765205500703,8.33257032,137.99,137.96,7.94]
[1765205501020,7.61257032,137.97,137.92,7.25025173]
[1765205501193,7.61257032,137.97,137.93,7.94]
[1765205501399,17.14251524,137.96,137.93,7.94]
[1765205501631,7.61257032,137.94,137.89,7.94]
[1765205501922,7.61257032,137.95,137.9,0.67]
[1765205502128,8.33257032,137.95,137.9,7.25160097]
[1765205502314,15.5820991,137.94,137.89,15.19196174]
[1765205502621,14.8620991,137.94,137.89,15.19196174]
[1765205502802,7.24917691,137.95,137.9,8.28257032]
[1765205503002,14.86174723,137.95,137.9,0.67]
[1765205503330,0.72,137.94,137.89,22.80453206]
[1765205503524,8.33257032,137.94,137.89,15.19196174]
[1765205503724,7.61257032,137.93,137.89,15.19196174]
[1765205503905,8.33257032,137.93,137.89,15.19196174]
[1765205504327,7.97058004,137.92,137.89,7.94]
[1765205504619,7.25058004,137.92,137.89,7.94]
[1765205504831,16.42251524,137.9,137.84,14.86726661]
[1765205505007,16.42251524,137.9,137.84,15.19469629]
[1765205505201,17.14251524,137.9,137.85,7.25421275]
[1765205505423,17.14251524,137.9,137.85,7.92421275]
[1765205505613,17.14251524,137.9,137.86,7.25372569]
[1765205505812,14.86315036,137.92,137.87,7.25287239]
[1765205506023,14.86315036,137.92,137.88,7.25234164]
[1765205506024,7.25058004,137.92,137.88,7.25234164]
[1765205506213,24.39273512,137.93,137.88,7.92234164]
[1765205506429,8.33257032,137.92,137.87,7.2528396]
[1765205507003,8.33257032,137.92,137.87,7.9228396]
[1765205507301,8.33257032,137.92,137.88,7.25262509]
[1765205507501,8.33257032,137.92,137.87,7.9231058]
[1765205507712,8.33257032,137.91,137.86,14.86610024]
[1765205507925,8.33257032,137.91,137.86,15.53610024]
[1765205508125,0.72,137.91,137.87,7.92305337]
[1765205508306,7.61257032,137.91,137.87,7.25305337]
[1765205508628,8.33257032,137.91,137.87,7.25305337]
[1765205508803,15.58384622,137.91,137.86,7.25324626]
[1765205509326,17.14251524,137.9,137.85,7.25415985]
[1765205509523,17.14251524,137.9,137.84,15.55257032]
[1765205509704,17.14251524,137.9,137.84,16.22257032]
[1765205510098,17.14251524,137.9,137.86,7.25371396]
[1765205510320,14.86423785,137.9,137.86,7.25373567]
[1765205510631,15.58380734,137.91,137.87,0.66]
[1765205510939,7.61257032,137.89,137.85,7.25415531]
[1765205511104,8.30257032,137.89,137.85,7.25415531]
[1765205511722,0.69,137.88,137.85,7.25415531]
[1765205512222,15.55489709,137.89,137.85,7.25415531]
[1765205512405,0.69,137.92,137.87,7.61257032]
[1765205512606,23.92143432,137.93,137.88,7.94]
[1765205512816,31.17169528,137.93,137.88,7.94]
[1765205513128,23.55912496,137.93,137.89,0.66]
[1765205513433,14.86191889,137.95,137.89,8.27257032]
[1765205513924,23.67132192,137.96,137.91,7.25110579]
[1765205514232,23.67132192,137.96,137.92,7.94]
[1765205514522,14.86062014,137.97,137.92,16.21257032]
[1765205514702,7.61257032,137.96,137.92,8.6]
[1765205514899,15.55062014,137.97,137.92,8.6]
[1765205515861,15.55062014,137.97,137.92,15.85014397]
[1765205516123,16.05757096,137.98,137.93,8.27257032]
[1765205516432,23.67014128,137.98,137.93,0.66]
[1765205516731,0.69,137.97,137.92,22.80271429]
[1765205517105,15.55072641,137.97,137.92,7.25014397]
[1765205517312,15.55072641,137.97,137.93,7.94]
[1765205517521,17.11251524,137.96,137.93,7.94]
[1765205518024,14.86072641,137.97,137.93,8.6]
[1765205518335,15.55072641,137.97,137.93,7.94]
[1765205518531,17.11251524,137.96,137.93,7.94]
[1765205518823,17.11251524,137.96,137.92,7.25037447]
[1765205519004,14.86072641,137.97,137.92,7.25037447]
[1765205519201,7.93815609,137.97,137.92,14.86294479]
[1765205519429,7.93815609,137.97,137.92,15.52294479]
[1765205519801,31.16903594,137.98,137.93,8.27257032]
[1765205520004,16.308864,137.98,137.94,15.55257032]
[1765205520211,0.69,138.01,137.96,7.61257032]
[1765205520410,7.61257032,137.99,137.94,7.94]
[1765205520626,7.61257032,137.99,137.94,8.6]
[1765205520831,8.30257032,138.02,137.97,7.61257032]
[1765205521133,8.30257032,138.02,137.95,7.90880729]
[1765205521134,14.85894713,138.0,137.95,7.90880729]
[1765205521442,9.49994492,138.02,137.96,8.27257032]
[1765205521443,14.85807525,138.02,137.96,8.27257032]
[1765205521627,16.42251524,138.04,137.99,7.61257032]
[1765205521827,15.54632258,138.05,137.99,15.55257032]
[1765205522002,7.93375226,138.05,138.0,7.61257032]
[1765205522204,14.95592558,138.06,138.0,8.27257032]
[1765205522425,23.65221926,138.06,138.01,7.61257032]
[1765205522630,0.1,138.06,138.04,7.61257032]
[1765205522816,0.1,138.06,138.04,7.94]
[1765205523321,0.1,138.06,138.05,8.27257032]
[1765205523735,0.1,138.06,138.05,0.66]
[1765205524035,0.1,138.06,138.04,22.79669933]
[1765205524235,0.1,138.06,138.05,0.66]
[1765205524535,0.1,138.06,138.05,8.27257032]
[1765205524724,0.1,138.12,138.08,7.61257032]
[1765205524923,0.1,138.12,138.08,7.94]
[1765205525131,0.1,138.12,138.08,23.45451529]
[1765205525745,0.1,138.12,138.11,7.61257032]
[1765205525945,0.1,138.12,138.1,7.61257032]
[1765205526115,0.1,138.12,138.1,7.94]
[1765205527535,0.1,138.12,138.08,7.94]
[1765205527536,7.61257032,138.11,138.08,7.94]
[1765205527723,0.8,138.12,138.08,7.94]
[1765205527724,8.41257032,138.12,138.08,7.94]
[1765205528127,0.7,138.11,138.08,7.94]
[1765205528434,7.61257032,138.09,138.05,7.94]
[1765205528812,0.7,138.09,138.05,7.94]
[1765205529031,0.7,138.09,138.05,8.65]
[1765205529232,0.7,138.09,138.05,15.18353987]
[1765205529437,15.55423717,138.09,138.05,7.94]
[1765205529642,7.61257032,138.08,138.05,7.94]
[1765205529849,7.61257032,138.07,138.05,7.94]
[1765205530016,7.61257032,138.09,138.05,7.94]
[1765205530334,15.55432448,138.09,138.05,7.94]
[1765205530519,15.55432448,138.09,138.01,16.308864]
[1765205530520,16.308864,138.07,138.01,0.71]
[1765205530721,23.92143432,138.07,138.01,8.32257032]
[1765205530926,7.61257032,138.07,138.02,7.24515203]
[1765205531131,0.7,138.06,138.02,7.24515203]
[1765205531330,7.61257032,138.07,138.02,7.95515203]
[1765205531525,8.31257032,138.07,138.02,7.95515203]
[1765205531736,0.7,138.06,138.02,7.24515203]
[1765205532042,7.61257032,138.05,137.99,8.65]
[1765205532246,9.50994492,138.06,137.99,8.65]
[1765205532247,7.61257032,138.04,137.99,8.65]
[1765205532540,7.61257032,138.03,137.99,15.89686483]
[1765205533527,7.61257032,138.03,138.0,0.71]
[1765205533731,14.85751584,138.03,137.99,7.94]
[1765205533926,15.55642186,138.05,137.99,15.89682433]
[1765205534126,32.73137924,138.05,138.0,0.71]
[1765205534438,7.61257032,138.03,137.98,15.18725911]
[1765205534645,7.61257032,138.03,137.99,7.24674139]
[1765205534853,8.31257032,138.02,137.98,7.94]
[1765205535035,7.61257032,138.01,137.98,7.94]
[1765205535427,14.85859857,138.01,137.98,7.94]
[1765205536536,8.80994492,137.98,137.91,7.25105311]
[1765205536735,7.61257032,137.96,137.91,7.25105311]
[1765205537136,0.7,137.95,137.9,7.94]
[1765205537346,7.61257032,137.92,137.9,7.94]
[1765205537744,15.56331911,137.92,137.9,7.94]
[1765205538030,15.56331911,137.92,137.86,18.84407]
[1765205538031,8.31257032,137.91,137.87,7.94]
[1765205538230,7.61257032,137.9,137.87,7.94]
[1765205538432,16.06069371,137.92,137.87,8.65]
[1765205538632,8.31257032,137.91,137.87,7.94]
[1765205539045,0.7,137.91,137.87,7.94]
[1765205539267,7.61257032,137.89,137.87,7.94]
[1765205539565,14.86561326,137.88,137.85,0.2]
[1765205539960,0.7,137.89,137.85,7.45403355]
[1765205540170,8.31257032,137.88,137.85,0.2]
[1765205540333,7.61257032,137.88,137.85,0.2]
[1765205540533,7.61257032,137.86,137.85,0.2]
[1765205540756,8.31257032,137.86,137.85,0.2]
[1765205540957,17.12251524,137.86,137.85,0.2]
[1765205541662,8.31257032,137.86,137.85,0.2]
[1765205542362,16.06270451,137.88,137.85,0.2]
[1765205542561,7.61257032,137.87,137.85,0.2]
[1765205542737,7.61257032,137.86,137.85,0.2]
[1765205543454,7.61257032,137.87,137.85,0.2]
[1765205543658,15.54585835,137.87,137.85,0.2]
[1765205544153,7.61257032,137.87,137.85,0.2]
[1765205544343,14.8652689,137.88,137.85,0.2]
[1765205544658,31.17372092,137.89,137.85,8.17405998]
[1765205544851,23.92143432,137.89,137.85,8.17405998]
[1765205545057,16.42251524,137.92,137.86,0.72]
[1765205545249,7.61257032,137.94,137.87,7.61257032]
[1765205545436,7.61257032,137.95,137.88,15.55257032]
[1765205545758,7.61257032,137.91,137.88,7.94]
[1765205546263,8.29257032,137.91,137.88,7.94]
[1765205546435,7.61257032,137.9,137.86,7.25358048]
[1765205546631,8.29257032,137.9,137.87,7.25318624]
[1765205546936,7.61257032,137.91,137.87,7.97318624]
[1765205547263,7.61257032,137.91,137.87,0.72]
[1765205547554,7.61257032,137.92,137.88,7.25267747]
[1765205547756,7.61257032,137.93,137.88,7.97267747]
[1765205547958,7.61257032,137.93,137.89,0.72]
[1765205548146,14.8620991,137.94,137.89,0.72]
[1765205548454,14.8621358,137.94,137.89,8.66]
[1765205548840,14.8621358,137.94,137.9,0.72]
[1765205549157,14.8621358,137.94,137.89,7.94]
[1765205549158,7.61257032,137.93,137.89,8.66]
[1765205549456,7.61257032,137.93,137.89,15.91173396]
[1765205549756,8.29257032,137.92,137.88,15.19253512]
[1765205550178,0.68,137.92,137.89,7.2519353]
[1765205550473,7.61257032,137.93,137.89,7.9719353]
[1765205550637,4.37742246,137.93,137.89,7.9719353]
[1765205550844,11.62754897,137.93,137.89,7.9719353]
[1765205551038,12.30754897,137.93,137.88,15.19262003]
[1765205551349,5.05742246,137.92,137.88,7.94]
[1765205551643,4.37742246,137.91,137.88,15.19262695]
[1765205551957,24.248864,137.96,137.88,15.91262695]
[1765205551958,8.80994492,137.94,137.88,15.91262695]
[1765205552258,4.37742246,137.92,137.88,8.66]
[1765205552564,4.37742246,137.91,137.88,7.94]
[1765205553137,4.37742246,137.93,137.88,15.19247352]
[1765205553339,114.62662727,137.95,137.89,5.09742246]
[1765205553641,4.37742246,137.95,137.91,7.25110579]
[1765205553841,5.05742246,137.94,137.9,7.25145727]
[1765205554266,8.80994492,137.95,137.91,0.72]
[1765205554267,4.37742246,137.95,137.91,0.72]
[1765205554464,27.93495258,137.96,137.91,0.72]
[1765205554638,17.42994492,137.97,137.91,0.72]
[1765205554639,4.37742246,137.99,137.92,12.31742246]
[1765205554965,16.308864,137.99,137.93,4.37742246]
[1765205555142,4.37742246,137.98,137.93,0.72]
[1765205555648,11.62513973,137.98,137.93,7.96959298]
[1765205555851,5.05742246,137.97,137.93,7.24959298]
[1765205556052,0.68,137.97,137.93,7.96959298]
[1765205556259,11.62513973,137.98,137.93,7.96959298]
[1765205556435,12.30513973,137.98,137.93,7.96959298]
[1765205556857,5.05742246,137.97,137.92,7.94]
[1765205557262,5.05742246,137.97,137.93,7.24986737]
[1765205557558,0.68,137.97,137.93,7.24986737]
[1765205557937,7.94,138.02,137.94,5.09742246]
[1765205557938,42.36251092,138.02,137.94,5.09742246]
[1765205558140,13.18736738,138.01,137.95,4.37742246]
[1765205558368,29.30628646,138.02,137.96,8.66]
[1765205558549,29.30628646,138.02,137.96,13.03742246]
[1765205558550,24.23425429,138.02,137.96,13.03742246]
[1765205558767,28.61167675,138.02,137.96,8.66]
[1765205558971,4.37742246,138.0,137.96,7.94]
[1765205559542,0.68,137.99,137.96,7.94]
[1765205559743,16.05649057,138.0,137.96,15.18841781]
[1765205559964,16.73649057,138.0,137.96,15.90841781]
[1765205560668,21.11391303,138.0,137.96,7.94]
[1765205560881,0.68,137.99,137.96,7.94]
[1765205561168,5.05742246,137.99,137.96,7.94]
[1765205561842,5.05742246,137.98,137.93,7.96985266]
[1765205562040,5.05742246,137.98,137.93,15.90985266]
[1765205562267,0.68,137.98,137.94,7.96939543]
[1765205562656,5.05742246,137.98,137.94,7.96939543]
[1765205562972,0.68,137.98,137.93,12.31742246]
[1765205563268,11.62471546,137.99,137.94,0.72]
[1765205563465,12.30395142,138.0,137.96,7.24846192]
[1765205563664,20.68628646,138.02,137.97,8.66]
[1765205563849,16.308864,138.02,137.98,7.24742716]
[1765205564056,16.308864,138.02,137.98,7.96742716]
[1765205564261,12.30228411,138.03,137.98,7.96742716]
[1765205564463,23.1660876,138.06,137.99,5.09742246]
[1765205564770,4.37742246,138.03,137.98,7.24742716]
[1765205565149,13.18736738,138.04,137.99,0.72]
[1765205565356,13.86736738,138.04,137.99,0.72]
[1765205565549,0.68,138.03,137.99,0.72]
[1765205565751,4.37742246,138.04,137.99,0.72]
[1765205565956,0.68,138.04,138.0,7.24637681]
[1765205566463,21.36628646,138.06,138.01,8.66]
[1765205566661,20.43003103,138.08,138.02,4.37742246]
[1765205566971,7.24266365,138.08,138.03,4.37742246]
[1765205567349,7.92266365,138.08,138.03,5.09742246]
[1765205567762,8.80994492,138.09,138.03,4.37742246]
[1765205567962,5.05742246,138.1,138.05,7.24375226]
[1765205568152,13.86736738,138.1,138.05,7.24375226]
[1765205568389,5.05742246,138.09,138.05,7.94]
[1765205569181,4.37742246,138.07,138.05,7.94]
[1765205569354,4.37742246,138.07,138.02,7.94]
[1765205569676,4.37742246,138.07,138.02,15.18497147]
[1765205569855,16.308864,138.07,138.02,7.94]
[1765205570044,23.55169967,138.07,138.03,0.72]
[1765205570247,11.61964019,138.08,138.03,0.72]
[1765205570462,12.29964019,138.08,138.03,0.72]
[1765205570975,5.05742246,138.07,138.02,15.18529464]
[1765205571273,5.05742246,138.07,138.02,7.94]
[1765205571274,4.37742246,138.05,138.02,7.94]
[1765205571651,0.72,138.04,138.02,7.94]
[1765205572173,7.96452408,138.04,138.02,7.94]
[1765205572360,12.34194654,138.04,138.02,7.94]
[1765205573068,11.62137098,138.05,138.02,7.94]
[1765205573262,12.34137098,138.05,138.02,7.94]
[1765205573464,11.62086841,138.06,138.02,15.18524049]
[1765205573774,12.34086841,138.06,138.02,15.18524049]
[1765205574356,11.62033303,138.07,138.02,15.88524049]
[1765205574565,23.20328266,138.08,138.02,15.18524049]
[1765205574770,23.20328266,138.08,138.03,0.7]
[1765205574771,11.61979279,138.08,138.03,0.7]
[1765205575269,7.24185647,138.09,138.03,5.07742246]
[1765205575482,11.61927893,138.09,138.03,5.07742246]
[1765205575677,11.61927893,138.09,138.04,0.7]
[1765205576054,12.33927893,138.09,138.04,0.7]
[1765205576255,11.61927893,138.09,138.04,0.7]
[1765205576470,7.24185647,138.09,138.04,12.32150821]
[1765205576659,7.24185647,138.09,138.05,0.7]
[1765205577460,7.24185647,138.09,138.05,8.64]
[1765205577776,33.07971745,138.11,138.05,8.64]
[1765205577959,0.72,138.1,138.05,8.64]
[1765205578279,5.09742246,138.1,138.05,8.64]
[1765205578573,13.18736738,138.09,138.05,7.94]
[1765205578757,4.37742246,138.08,138.05,7.94]
[1765205578960,5.09742246,138.08,138.05,7.94]
[1765205579276,0.69,138.07,138.05,7.94]
[1765205579659,7.2425172,138.08,138.06,0.72]
[1765205579865,8.80994492,138.11,138.06,5.09742246]
[1765205580252,0.1,138.12,138.07,5.09742246]
[1765205580457,0.1,138.12,138.08,4.37742246]
[1765205580662,0.1,138.12,138.09,12.31742246]
[1765205580864,0.1,138.12,138.11,4.37742246]
[1765205581382,0.1,138.12,138.11,5.09742246]
[1765205581687,0.1,138.12,138.11,12.33802777]
[1765205582077,0.1,138.12,138.11,7.96060531]
[1765205582270,0.1,138.12,138.11,12.33802777]
[1765205583285,0.1,138.12,138.11,21.14797269]
[1765205583581,1e-08,138.12,138.11,21.14797269]
[1765205583784,1e-08,138.12,138.11,12.33802777]
[1765205584086,1e-08,138.12,138.09,0.72]
[1765205584268,0.69000001,138.12,138.07,7.24268481]
[1765205584466,1e-08,138.12,138.09,7.24126589]
[1765205584669,1e-08,138.12,138.1,4.37742246]
[1765205584875,1e-08,138.12,138.11,19.55802777]
[1765205585373,1e-08,138.12,138.11,20.27802777]
[1765205586971,1e-08,138.12,138.11,15.18060531]
[1765205587266,1e-08,138.12,138.11,20.27802777]
[1765205588497,1e-08,138.12,138.11,19.55802777]
[1765205588786,1e-08,138.12,138.11,20.27802777]
[1765205590161,1e-08,138.12,138.11,15.18060531]
[1765205590362,1e-08,138.12,138.11,7.94]
[1765205592179,1e-08,138.12,138.11,20.27802777]
[1765205592370,1e-08,138.12,138.11,15.18060531]
[1765205592573,1e-08,138.12,138.02,0.99999999]
[1765205592574,0.69000001,138.12,138.08,7.24185513]
[1765205592770,0.69000001,138.12,138.09,7.92]
[1765205593287,8.80994492,138.11,138.06,23.55200893]
[1765205593493,8.80994492,138.11,138.06,31.47200893]
[1765205593787,1e-08,138.12,138.07,0.72]
[1765205594095,0.69,138.11,138.06,28.60628646]
[1765205594301,0.69,138.11,138.07,7.24270297]
[1765205594494,0.69,138.11,138.07,7.96270297]
[1765205594667,0.69,138.11,138.07,26.06946041]
[1765205594864,1e-08,138.12,138.07,26.06946041]
[1765205594865,1e-08,138.12,138.1,4.37742246]
[1765205595090,1e-08,138.12,138.11,12.29742246]
[1765205595301,1e-08,138.12,138.11,7.92]
[1765205596369,1e-08,138.12,138.11,15.16060531]
[1765205597077,1e-08,138.12,138.11,20.25802777]
[1765205597401,1e-08,138.12,138.11,15.16060531]
[1765205597605,1e-08,138.12,138.11,20.25802777]
[1765205598295,1e-08,138.12,138.11,15.16060531]
[1765205598787,1e-08,138.12,138.11,19.53802777]
[1765205598989,1e-08,138.12,138.11,20.25802777]
[1765205600703,1e-08,138.12,138.11,15.16060531]
[1765205601386,1e-08,138.12,138.11,19.53802777]
[1765205602214,1e-08,138.12,138.11,20.20802777]
[1765205604088,1e-08,138.12,138.11,19.53802777]
[1765205604907,1e-08,138.12,138.11,15.16060531]
[1765205605190,1e-08,138.12,138.11,7.92]
[1765205605423,0.68000001,138.12,138.11,7.92]
[1765205605597,1e-08,138.12,138.11,15.16060531]
[1765205607094,0.68000001,138.12,138.1,7.24107372]
[1765205607789,1e-08,138.12,138.1,7.24107372]
[1765205608317,0.68000001,138.12,138.1,7.24107372]
[1765205609018,12.29759005,138.12,138.09,7.92]
[1765205609228,0.68000001,138.12,138.09,15.16160433]
[1765205611329,1e-08,138.12,138.1,8.26753201]
[1765205611645,1e-08,138.12,138.11,7.59753201]
[1765205612141,0.68000001,138.12,138.09,40.86327132]
[1765205612437,1e-08,138.12,138.1,7.59753201]
[1765205612747,0.68000001,138.12,138.09,40.86327132]
[1765205612915,7.92016357,138.12,138.09,7.92]
[1765205613331,0.68,138.11,138.09,7.92]
[1765205613505,0.68,138.11,138.09,15.16161293]
[1765205613922,0.68,138.11,138.09,7.92]
[1765205614121,0.68,138.11,138.09,15.16124471]
[1765205614936,7.92061805,138.11,138.09,7.92]
[1765205615440,0.68,138.1,138.09,7.92]
[1765205615810,0.68,138.1,138.07,7.2424958]
[1765205616010,7.24027575,138.12,138.08,7.92]
[1765205616218,0.68,138.11,138.08,7.92]
[1765205616646,8.27753201,138.11,138.08,7.92]
[1765205617136,0.68,138.1,138.08,7.92]
[1765205617340,8.27753201,138.1,138.06,7.92]
[1765205617524,7.92154329,138.1,138.06,7.92]
[1765205617724,0.68,138.09,138.06,7.92]
[1765205618251,0.68,138.09,138.06,15.16322024]
[1765205618547,0.68000001,138.12,138.06,22.76075225]
[1765205618720,0.68,138.11,138.07,7.59753201]
[1765205618913,1e-08,138.12,138.07,8.26753201]
[1765205619114,1e-08,138.12,138.1,7.59753201]
[1765205619429,1e-08,138.12,138.11,7.92]
[1765205619741,1e-08,138.12,138.11,15.16060531]
[1765205619917,1e-08,138.12,138.11,7.92]
[1765205621042,1e-08,138.12,138.11,15.16060531]
[1765205622326,0.68000001,138.12,138.08,7.92]
[1765205622651,8.27753202,138.12,138.08,7.92]
[1765205623015,0.68,138.11,138.06,25.70448127]
[1765205623216,7.02670602,138.12,138.06,33.62448127]
[1765205623416,8.80994492,138.11,138.06,15.1628402]
[1765205623642,7.59753201,138.11,138.06,15.1628402]
[1765205624219,7.24112961,138.1,138.06,15.1628402]
[1765205624845,7.59753201,138.09,138.03,7.59753201]
[1765205625028,7.59753201,138.09,138.04,15.16392727]
[1765205625226,8.27753201,138.09,138.04,15.16392727]
[1765205625446,0.68,138.08,138.04,7.92]
[1765205625742,8.27753201,138.08,138.04,7.92]
[1765205626117,0.68,138.07,138.04,7.92]
[1765205626321,7.92301602,138.07,138.04,7.92]
[1765205627133,7.24301602,138.07,138.04,7.92]
[1765205627450,0.68,138.06,138.02,15.16517348]
[1765205628136,8.27753201,138.06,138.02,7.92]
[1765205628326,7.24375226,138.05,138.02,7.92]
[1765205628633,7.92375226,138.05,138.02,7.92]
[1765205628831,7.59753201,138.07,138.02,15.16512786]
[1765205629031,7.24231479,138.08,138.03,8.26753201]
[1765205629228,7.24231479,138.08,138.04,7.59753201]
[1765205629428,7.24231479,138.08,138.04,8.26753201]
[1765205629639,25.11880892,138.09,138.05,0.67]
[1765205629640,32.36058756,138.09,138.05,0.67]
[1765205629840,33.04058756,138.09,138.05,0.67]
[1765205630065,0.68,138.08,138.03,7.59753201]
[1765205630350,0.68,138.08,138.03,8.26753201]
[1765205630526,7.92227852,138.08,138.04,7.91427702]
[1765205630723,7.92227852,138.08,138.04,7.24427702]
[1765205631450,0.71,138.07,138.03,7.24463105]
[1765205631825,7.24227852,138.08,138.03,15.53216306]
[1765205632134,7.95227852,138.08,138.03,15.53216306]
[1765205632526,15.54833559,138.11,138.05,7.59753201]
[1765205632729,7.95080358,138.11,138.06,15.53753201]
[1765205633148,7.95080358,138.11,138.06,16.22753201]
[1765205633539,15.16029651,138.12,138.07,8.28753201]
[1765205633854,16.76024143,138.12,138.07,8.28753201]
[1765205634157,23.54916051,138.12,138.08,8.28753201]
[1765205634457,7.23973096,138.13,138.09,7.94]
[1765205634636,0.1,138.14,138.11,7.59753201]
[1765205634842,0.1,138.14,138.12,7.59753201]
[1765205636560,0.1,138.14,138.12,16.20753201]
[1765205636856,0.1,138.14,138.12,22.75715478]
[1765205637028,0.1,138.14,138.12,23.44715478]
[1765205637228,0.1,138.14,138.13,8.28753201]
[1765205637549,0.1,138.14,138.12,23.44715478]
[1765205638437,0.1,138.14,138.12,15.51753201]
[1765205638641,0.1,138.14,138.12,23.44741152]
[1765205640559,0.1,138.14,138.13,8.31753201]
[1765205640757,0.69,138.13,138.12,7.92]
[1765205641058,8.80994492,138.12,138.07,7.24259083]
[1765205641260,16.40747693,138.12,138.06,15.16291871]
[1765205641562,0.69,138.11,138.07,7.24270297]
[1765205641933,16.308864,138.13,138.09,7.24165399]
[1765205642136,23.548469,138.13,138.09,7.24165399]
[1765205642337,24.238469,138.13,138.09,7.24165399]
[1765205642545,24.238469,138.13,138.08,7.96196297]
[1765205643036,9.49994492,138.12,138.08,7.24193675]